{"text_format":"1","workbook":"xlsx","n_sheets":9,"sheets":["copertina","1. Anagrafica","2B. Proposta prog. e criteri","3. Conto economico previsionale","4.Programma di Investimenti L1","4.BProgR&S&I","5.Determinazione contributo","6.Piano di copertura","7.Criteri  di valutazione"],"not_rendered":{"charts":0,"images":1,"macros":1,"external_links":0,"defined_names":18,"comments":0,"pivot_tables":0},"unopened":[],"bounds":{"document_bytes":16777216,"sheet_cells":100000,"rows_first":2000,"rows_last":500,"rows_between":2000,"halvings":0,"cell_chars":16384,"cell_head_chars":4096},"cells_cut":0,"cells_raw":0,"read":"whole","date_system":"1900"}

{"sheet":"copertina","index":0,"n_rows":16,"n_cols":1,"rows_kept":16,"cut":false,"hidden":false,"merged":[[8,5,8,7],[12,0,12,12],[14,0,14,12],[15,0,15,12]]}
[]
[]
[]
[]
[]
[]
[]
[]
[]
[]
[]
[]
["Allegato 2 Formulario"]
[]
["PR CALABRIA FESR FSE 2021 – 2027\n\nPRIORITÀ 1STEP – “Una Calabria più competitiva e intelligente STEP”\nRSO1.6. Sostenere gli investimenti che contribuiscono agli obiettivi della piattaforma per le tecnologie strategiche per l'Europa (STEP) di cui all'articolo 2 del regolamento (UE) 2024/795 del Parlamento europeo e del Consiglio (FESR)\nAzione 1.6.1 Supporto agli investimenti in tecnologie digitali e innovazione delle tecnologie deep tech\n\nPRIORITÀ 2STEP  - “Una Calabria più resiliente e sostenibile STEP” \nRSO2.9. Sostenere gli investimenti che contribuiscono all'obiettivo STEP di cui all'articolo 2, paragrafo 1, lettera a), punto ii), del regolamento (UE) 2024/795 (FESR)\nAzione 2.9.1 Investimenti produttivi collegati principalmente alle tecnologie pulite ed efficienti sotto il profilo delle risorse\n\n“Avviso pubblico STEP Calabria – Aiuti per interventi su tecnologie critiche”"]
["La manomissione del presente file e delle formule in esso contenute determina l'inammissibilità della domanda di contributo"]

{"sheet":"1. Anagrafica","index":1,"n_rows":14,"n_cols":33,"rows_kept":14,"cut":false,"hidden":false,"merged":[[8,0,8,25],[0,0,0,25],[1,0,1,25],[2,0,2,25],[3,0,3,25],[4,0,4,25],[5,0,5,25],[6,0,6,25],[7,0,7,25],[13,0,13,25],[9,0,9,25],[10,0,10,25],[11,0,11,25],[12,0,12,25]]}
[" Anagrafica Soggetto Proponente",null,null,null,null,null,null,null,null,null,null,null,null,null,null,null,null,null,null,null,null,null,null,null,null,null,null,"Piccola Impresa",null,null,"a.1 realizzare nuove unità produttive",1,"Prevista"]
[null,null,null,null,null,null,null,null,null,null,null,null,null,null,null,null,null,null,null,null,null,null,null,null,null,null,null,"Media Impresa",null,null,"a.2 ampliare capacità di unità produttive esistenti",2,"Non prevista"]
["Denominazione/Ragione Sociale",null,null,null,null,null,null,null,null,null,null,null,null,null,null,null,null,null,null,null,null,null,null,null,null,null,null,"Grande impresa",null,null,"a.3 divesificare la produzione di uno stabilimento",3]
["aa",null,null,null,null,null,null,null,null,null,null,null,null,null,null,null,null,null,null,null,null,null,null,null,null,null,null,null,null,null,"a.4 apportare un cambiamento fondamentale del processo di  produzione",4]
["Forma giuridica",null,null,null,null,null,null,null,null,null,null,null,null,null,null,null,null,null,null,null,null,null,null,null,null,null,null,null,null,null,"Non previsto"]
["aa"]
["Codice Fiscale"]
["aa"]
["Dimensione impresa\n(da dichiarare sulla base dei criteri indicati nell’avviso)"]
["Piccola Impresa"]
["Intervento produttivo (facoltativo - art 2 - Punto a) dell'avviso)"]
["a.1 realizzare nuove unità produttive"]
["Attività Sviluppo Sperimentale e Ricerca Industriale (facoltativo - art 2 - Punti b) dell'avviso)"]
["Prevista"]

{"sheet":"2B. Proposta prog. e criteri","index":2,"n_rows":24,"n_cols":1,"rows_kept":24,"cut":false,"hidden":false,"merged":[]}
["2B.   Presentazione della proposta progettuale"]
["A1- Capacità degli interventi di contribuire al perseguimento dei risultati attesi del Programma e delle finalità dell’Azione specifica e chiara esplicitazione degli obiettivi e delle finalità proposti"]
["CRITERIO A1.1 (fornire informazioni utili all'attribuzione del punteggio)"]
[]
["CRITERIO A1.2  (fornire informazioni utili all'attribuzione del punteggio)"]
[]
["B2 Qualità delle soluzioni organizzative e metodologiche individuate per la realizzazione degli interventi connesse al piano di lavoro, alla valutazione dei rischi, alla adeguatezza delle risorse attribuite alle singole componenti progettuali"]
["CRITERIO B2.1 (fornire informazioni utili all'attribuzione del punteggio)"]
[]
["C1 Progetti incentrati sugli investimenti digitali e/o verdi, sull'economia a basse emissioni di carbonio, sulla resilienza e sull'adattamento ai cambiamenti climatici e sull’economia circolare che consentono autonomia strategica  e sostenibilità dell’industria dell’Unione"]
["CRITERIO C1.1.a) (fornire informazioni utili all'attribuzione del punteggio)\nN.B. IL CRITERIO E' ALTERNATIVO AL CRITERIO C.1.1.c)  E CUMULABILE CON IL CRITERIO  C.1.1.b)"]
[]
["CRITERIO C1.1.b) (fornire informazioni utili all'attribuzione del punteggio)\nN.B. IL CRITERIO E' ALTERNATIVO AL CRITERIO C.1.1.c)  E CUMULABILE CON IL CRITERIO  C.1.1.a)"]
[]
["CRITERIO C1.1.c)  (fornire informazioni utili all'attribuzione del punteggio) \nN.B. IL CRITERIO E' ALTERNATIVO E NON CUMULABILE CON I CRITERI C.1.1.a) e C.1.1.b)"]
[]
["C2 Grado di innovazione introdotte dalle tecnologie trasformative (in termini di processo, prodotto, assetti organizzativi e gestionali) che valorizzi le filiere interessate da STEP,  con priorità per investimenti effettuati da imprese non ancora localizzate nella Regione in grado di creare ecosistemi stabili"]
["CRITERIO C2.1 (fornire informazioni utili all'attribuzione del punteggio)"]
[]
["C3 Ricadute positive in termini occupazionali anche in termini di coinvolgimento e assunzione di giovani ricercatori nei progetti proposti, anche in ottica di reshoring "]
["CRITERIO C3.1 (fornire informazioni utili all'attribuzione del punteggio)"]
[]
["D2 Sostenibilità delle soluzioni proposte per la replicabilità e la durabilità dell'intervento"]
["CRITERIO D2.1 (fornire informazioni utili all'attribuzione del punteggio)"]

{"sheet":"3. Conto economico previsionale","index":3,"n_rows":32,"n_cols":5,"rows_kept":32,"cut":false,"hidden":false,"merged":[[0,0,0,4],[1,0,1,1]]}
["3. Conto economico previsionale dell'iniziativa**"]
["DESCRIZIONE DELLE VOCI",null,"I anno*","II anno","III anno"]
["A","Valore della produzione:",{"$f":"SUM(C4:C8)","v":0},{"$f":"SUM(D4:D8)","v":0},0]
["A.1","Ricavi delle vendite e delle prestazioni"]
["A.2","Variazione delle rimanenze di prodotti in corso di lavorazione, semilavorati e finiti"]
["A.3","Variazione dei lavori in corso su ordinazione"]
["A.4","Incrementi di immobilizzazioni per lavori interni"]
["A.5","Altri ricavi e proventi"]
["B","Costi della produzione:",{"$f":"SUM(C10:C18)","v":0},{"$f":"SUM(D10:D18)","v":0},0]
["B.1","Materie prime, sussidiarie, di consumo e merci"]
["B.2","Servizi"]
["B.3","Godimento di beni di terzi"]
["B.4","Personale"]
["B.5","Ammortamenti e svalutazioni"]
["B.6","Variazione delle rimanenze di materie prime, sussidiarie, di consumo e merci"]
["B.7","Accantonamenti per rischi"]
["B.8","Altri accantonamenti"]
["B.9","Oneri diversi di gestione"]
[null,"Risultato della gestione caratteristica (A - B)",{"$f":"+C3-C9","v":0},{"$f":"+D3-D9","v":0},0]
["C","Proventi e oneri finanziari:",{"$f":"+C21+C22-C23","v":0},{"$f":"+D21+D22-D23","v":0},0]
["C.1","Proventi da partecipazioni"]
["C.2","Altri proventi finanziari"]
["C.3","Interessi e altri oneri finanziari"]
["D","Rettifica valore attività finanziarie:",{"$f":"+C25-C26","v":0},{"$f":"+D25-D26","v":0},0]
["D.1","Rivalutazioni"]
["D.2","Svalutazioni"]
["E","Proventi e oneri straordinari"]
[null,"Risultato prima delle imposte (A – B + C + D + E)",{"$f":"+C19+C20+C24+C27","v":0},{"$f":"+D19+D20+D24+D27","v":0},0]
[null,"Imposte sul reddito d’esercizio"]
[null,"Utile (perdita) dell’esercizio",{"$f":"+C28-C29","v":0},{"$f":"+D28-D29","v":0},0]
[null,"** in domanda specificare le ipotesi di base per le proiezioni fornite"]
[null,"* per \"Anno 1\" si intende l'anno successivo a quello in cui si prevede di concludere il programma di investimenti"]

{"sheet":"4.Programma di Investimenti L1","index":4,"n_rows":130,"n_cols":6,"rows_kept":130,"cut":false,"hidden":false,"merged":[[113,4,129,4],[95,4,111,4],[0,0,0,3],[1,0,1,3],[4,4,21,4],[22,4,43,4],[78,4,94,4]]}
["  Programma di investimenti Produttivi (facoltativo)"]
[" Elenco delle spese  (importi in euro e al netto dell’IVA)"]
["DESCRIZIONE DELLE SPESE","Il costo totale ammissibile non deve essere inferiore a € 750.000,00","Spese non ammissibili","Totale",null,{"$f":"B4+'4.BProgR&S&I'!D4","v":0}]
["TOTALE SPESE",{"$f":"B22+B44+B61+B78+B113+B130","v":0},{"$f":"C22+C44+C61+C78+C113+C130","v":0},{"$f":"B4+C4","v":0},null,{"$f":"IF(F3+'4.BProgR&S&I'!D4>=750000,\"OK\", \"Il costo totale ammissibile non deve essere inferiore a € 750.000,00\")","v":"Il costo totale ammissibile non deve essere inferiore a € 750.000,00"}]
["b1)  Acquisto del suolo e sue sistemazioni (limite del 10% dell’investimento ammissibile dell’intero progetto)",null,null,null,0.1]
[null,null,null,{"$f":"SUM(B6:C6)","v":0},null,{"$f":"IF(AND(B6>0,OR(A6=\"\",B6=\"\")), \"Inserire voce di spesa e descrizione\",\"OK\")","v":"OK"}]
[null,null,null,{"$f":"SUM(B7:C7)","v":0},null,{"$f":"IF(AND(B7>0,OR(A7=\"\",B7=\"\")), \"Inserire voce di spesa e descrizione\",\"OK\")","v":"OK"}]
[null,null,null,0,null,{"$f":"IF(AND(B8>0,OR(A8=\"\",B8=\"\")), \"Inserire voce di spesa e descrizione\",\"OK\")","v":"OK"}]
[null,null,null,0,null,"OK"]
[null,null,null,0,null,"OK"]
[null,null,null,0,null,"OK"]
[null,null,null,0,null,"OK"]
[null,null,null,0,null,"OK"]
[null,null,null,0,null,"OK"]
[null,null,null,0,null,"OK"]
[null,null,null,0,null,"OK"]
[null,null,null,0,null,"OK"]
[null,null,null,0,null,"OK"]
[null,null,null,0,null,"OK"]
[null,null,null,0,null,"OK"]
[null,null,null,0,null,"OK"]
["Totale b1) ",{"$f":"SUM(B6:B21)","v":0},{"$f":"SUM(C6:C21)","v":0},{"$f":"SUM(B22:C22)","v":0},null,{"$f":"IF(B22=0,\"OK\",IF(((B22)/$B$4)<=E5,\"OK\",\"Esubero di spesa\"))","v":"OK"}]
["b2 + b3)  Opere murarie e assimilabili (incluso l’acquisto dell’immobile) comprese quelle impiantistiche (idriche, fognarie, sanitarie, elettriche, riscaldamento, condizionamento, infissi e serramenti, fibra ottica, e comunque ogni tipologia di bene/servizio che per la sua installazione, montaggio o esecuzione, presuppone la realizzazione di opere murarie correlate) (limite del 40% dell’investimento ammissibile dell’intero progetto)",null,null,null,0.4]
[null,null,null,{"$f":"SUM(B24:C24)","v":0},null,{"$f":"IF(AND(B24>0,OR(A24=\"\",B24=\"\")), \"Inserire voce di spesa e descrizione\",\"OK\")","v":"OK"}]
[null,null,null,{"$f":"SUM(B25:C25)","v":0},null,"OK"]
[null,null,null,{"$f":"SUM(B26:C26)","v":0},null,"OK"]
[null,null,null,0,null,"OK"]
[null,null,null,0,null,"OK"]
[null,null,null,0,null,"OK"]
[null,null,null,0,null,"OK"]
[null,null,null,0,null,"OK"]
[null,null,null,0,null,"OK"]
[null,null,null,0,null,"OK"]
[null,null,null,0,null,"OK"]
[null,null,null,0,null,"OK"]
[null,null,null,0,null,"OK"]
[null,null,null,0,null,"OK"]
[null,null,null,0,null,"OK"]
[null,null,null,0,null,"OK"]
[null,null,null,0,null,"OK"]
[null,null,null,0,null,"OK"]
[null,null,null,0,null,"OK"]
[null,null,null,0,null,"OK"]
["Totale b2+b3) ",{"$f":"SUM(B24:B43)","v":0},{"$f":"SUM(C25:C43)","v":0},0,null,{"$f":"IF(B44=0,\"OK\",IF(((B44)/$B$4)<=E23,\"OK\",\"Esubero di spesa\"))","v":"OK"}]
["a)  Macchinari, impianti e attrezzature varie"]
[null,null,null,{"$f":"SUM(B46:C46)","v":0},null,"OK"]
[null,null,null,0,null,"OK"]
[null,null,null,0,null,"OK"]
[null,null,null,0,null,"OK"]
[null,null,null,0,null,"OK"]
[null,null,null,0,null,"OK"]
[null,null,null,0,null,"OK"]
[null,null,null,0,null,"OK"]
[null,null,null,0,null,"OK"]
[null,null,null,0,null,"OK"]
[null,null,null,0,null,"OK"]
[null,null,null,0,null,"OK"]
[null,null,null,0,null,"OK"]
[null,null,null,0,null,"OK"]
[null,null,null,0,null,"OK"]
["Totale a) ",{"$f":"SUM(B46:B60)","v":0},{"$f":"SUM(C46:C60)","v":0},{"$f":"SUM(B61:C61)","v":0}]
["c)  Attivi immateriali: Brevetti, licenze, know-how e conoscenze tecniche non brevettate"]
[null,null,null,{"$f":"SUM(B63:C63)","v":0},null,{"$f":"IF(AND(B63>0,OR(A63=\"\",B63=\"\")), \"Inserire voce di spesa e descrizione\",\"OK\")","v":"OK"}]
[null,null,null,{"$f":"SUM(B64:C64)","v":0},null,"OK"]
[null,null,null,0,null,"OK"]
[null,null,null,0,null,"OK"]
[null,null,null,0,null,"OK"]
[null,null,null,0,null,"OK"]
[null,null,null,0,null,"OK"]
[null,null,null,0,null,"OK"]
[null,null,null,0,null,"OK"]
[null,null,null,0,null,"OK"]
[null,null,null,0,null,"OK"]
[null,null,null,0,null,"OK"]
[null,null,null,0,null,"OK"]
[null,null,null,0,null,"OK"]
[null,null,null,0,null,"OK"]
["Totale c)",{"$f":"SUM(B63:B77)","v":0},{"$f":"SUM(C63:C77)","v":0},{"$f":"SUM(B78:C78)","v":0}]
["d) Studi di fattibilità, progettazioni ingegneristiche e direzione lavori, relazioni tecnico-estimative e/o perizie asseverate da tecnici iscritti ad Albi (limite del 4% incluso la voce e) dell’investimento produttivo ammissibile)  ",null,null,null,0.04]
[null,null,null,{"$f":"SUM(B80:C80)","v":0},null,{"$f":"IF(AND(B80>0,OR(A80=\"\",B80=\"\")), \"Inserire voce di spesa e descrizione\",\"OK\")","v":"OK"}]
[null,null,null,0,null,{"$f":"IF(AND(B81>0,OR(A81=\"\",B81=\"\")), \"Inserire voce di spesa e descrizione\",\"OK\")","v":"OK"}]
[null,null,null,0,null,"OK"]
[null,null,null,0,null,"OK"]
[null,null,null,0,null,"OK"]
[null,null,null,0,null,"OK"]
[null,null,null,0,null,"OK"]
[null,null,null,0,null,"OK"]
[null,null,null,0,null,"OK"]
[null,null,null,0,null,"OK"]
[null,null,null,0,null,"OK"]
[null,null,null,0,null,"OK"]
[null,null,null,0,null,"OK"]
[null,null,null,0,null,"OK"]
[null,null,null,0,null,"OK"]
["Totale d)",{"$f":"SUM(B80:B94)","v":0},{"$f":"SUM(C80:C94)","v":0},{"$f":"SUM(B95:C95)","v":0},null,{"$f":"IFERROR(IF(B95+B130<=$B$4*E79,\"OK\",\"Esubero di spesa\"),\"\")","v":"OK"}]
["d2)  Studi di fattibilità tecnico-economica-finanziaria (limite del 3% dell’investimento ammissibile) e comunque max 50.000 euro se investimenti ammissibili > 1.667.000)",null,null,null,0.03]
[null,null,null,{"$f":"SUM(B97:C97)","v":0},null,{"$f":"IF(AND(B97>0,OR(A97=\"\",B97=\"\")), \"Inserire voce di spesa e descrizione\",\"OK\")","v":"OK"}]
[null,null,null,{"$f":"SUM(B98:C98)","v":0},null,{"$f":"IF(AND(B98>0,OR(A98=\"\",B98=\"\")), \"Inserire voce di spesa e descrizione\",\"OK\")","v":"OK"}]
[null,null,null,0,null,"OK"]
[null,null,null,0,null,"OK"]
[null,null,null,0,null,"OK"]
[null,null,null,0,null,"OK"]
[null,null,null,0,null,"OK"]
[null,null,null,0,null,"OK"]
[null,null,null,0,null,"OK"]
[null,null,null,0,null,"OK"]
[null,null,null,0,null,"OK"]
[null,null,null,0,null,"OK"]
[null,null,null,0,null,"OK"]
[null,null,null,0,null,"OK"]
[null,null,null,0,null,"OK"]
["Totale d2)",{"$f":"SUM(B97:B111)","v":0},{"$f":"SUM(C97:C111)","v":0},{"$f":"SUM(B112:C112)","v":0},null,{"$f":"IFERROR(IF(AND($B$4>1667000,B112/$B$4>=E96),\"Esubero di spesa\",IF(AND(B112>=0,B112<=50000,B112/$B$4<=E96),\"OK\",\"Esubero di spesa\")),\"\")","v":""}]
["Totale d) ",{"$f":"B95+B112","v":0},{"$f":"C95+C112","v":0},{"$f":"D95+D112","v":0}]
["e) Consulenza, solo per PMI (limite del 4% incluso voce d) dell'investimento produttivo ammissibile)",null,null,null,0.04]
[null,null,null,{"$f":"SUM(B115:C115)","v":0},null,{"$f":"IF(AND(B115>0,OR(A115=\"\",B115=\"\")), \"Inserire voce di spesa e descrizione\",\"OK\")","v":"OK"}]
[null,null,null,{"$f":"SUM(B116:C116)","v":0},null,{"$f":"IF(AND(B116>0,OR(A116=\"\",B116=\"\")), \"Inserire voce di spesa e descrizione\",\"OK\")","v":"OK"}]
[null,null,null,0,null,"OK"]
[null,null,null,0,null,"OK"]
[null,null,null,0,null,"OK"]
[null,null,null,0,null,"OK"]
[null,null,null,0,null,"OK"]
[null,null,null,0,null,"OK"]
[null,null,null,0,null,"OK"]
[null,null,null,0,null,"OK"]
[null,null,null,0,null,"OK"]
[null,null,null,0,null,"OK"]
[null,null,null,0,null,"OK"]
[null,null,null,0,null,"OK"]
[null,null,null,0,null,"OK"]
["Totale e)",{"$f":"SUM(B115:B129)","v":0},{"$f":"SUM(C115:C129)","v":0},{"$f":"SUM(B130:C130)","v":0},null,{"$f":"IFERROR(IF(B95+B130<=$B$4*E79,\"OK\",\"Esubero di spesa\"),\"\")","v":"OK"}]

{"sheet":"4.BProgR&S&I","index":5,"n_rows":67,"n_cols":8,"rows_kept":67,"cut":false,"hidden":false,"merged":[[0,0,0,5],[1,0,1,5],[15,6,63,6]]}
["B) Attività di sviluppo sperimentale e correlata Ricerca industriale"]
[" Elenco delle spese  (importi in euro e al netto dell’IVA)"]
["DESCRIZIONE DELLE SPESE",null,null,null,"Spese non ammissibili","Totale",null,{"$f":"D4+'4.Programma di Investimenti L1'!B4","v":0}]
["TOTALE SPESE",null,null,{"$f":"D15+D64","v":0},{"$f":"E15+E64","v":0},{"$f":"F15+F64","v":0},null,{"$f":"IF(H3>=750000,\"OK\", \"Il costo totale ammissibile non deve essere inferiore a € 750.000,00\")","v":"Il costo totale ammissibile non deve essere inferiore a € 750.000,00"}]
["a)  Spese personale (attività Ricerca Industriale )","Costo Oraro","N° Ore","Costo ammissibile",null,null,null,{"$f":"IF('1. Anagrafica'!A12<>'1. Anagrafica'!AE5,\"\",IF(D4>3000000,\"Esubero di Spesa\",\"OK\"))","v":""}]
["spese di personale tipo A (Alto, per livelli dirigenziali",83,null,{"$f":"B6*C6","v":0},null,{"$f":"SUM(D6:E6)","v":0}]
["spese di personale tipo M (Medio, per livelli quadro)",47,null,{"$f":"B7*C7","v":0},null,{"$f":"SUM(D7:E7)","v":0}]
["spese di personale tipo B (Basso, per livelli di impiegato/operaio)",30,null,0,null,0]
["Totale a) quota (RI)",null,null,{"$f":"SUM(D6:D8)","v":0},{"$f":"SUM(E6:E8)","v":0},{"$f":"SUM(D9:E9)","v":0}]
["a)  Spese personale (attività Sviluppo Sperimentale )"]
["spese di personale tipo A (Alto, per livelli dirigenziali",83,null,{"$f":"B11*C11","v":0},null,{"$f":"D11+E11","v":0}]
["spese di personale tipo M (Medio, per livelli quadro)",47,null,{"$f":"B12*C12","v":0},null,{"$f":"D12+E12","v":0}]
["spese di personale tipo B (Basso, per livelli di impiegato/operaio)",30,null,0,null,0]
["Totale a) quota (SS)",null,null,{"$f":"SUM(D11:D13)","v":0},{"$f":"SUM(E11:E13)","v":0},{"$f":"SUM(F11:F13)","v":0}]
["Totale A (a)  = totale spese personale",null,null,{"$f":"D9+D14","v":0},{"$f":"E9+E14","v":0},0]
["b) Strumentazione e attrezzature (attività Ricerca Industriale )",null,null,null,null,null,0.4]
[null,null,null,null,null,{"$f":"SUM(D17:E17)","v":0},null,{"$f":"IF(AND(D17>0,OR(A17=\"\",D17=\"\")), \"Inserire voce di spesa e descrizione\",\"OK\")","v":"OK"}]
[null,null,null,null,null,{"$f":"SUM(D18:E18)","v":0},null,"OK"]
[null,null,null,null,null,0,null,"OK"]
[null,null,null,null,null,0,null,"OK"]
[null,null,null,null,null,0,null,"OK"]
[null,null,null,null,null,0,null,"OK"]
["Totale b) ",null,null,{"$f":"SUM(D17:D22)","v":0},{"$f":"SUM(E17:E22)","v":0},0]
["b) Strumentazione e attrezzature (attività Sviluppo Sperimentale )"]
[null,null,null,null,null,{"$f":"SUM(D25:E25)","v":0},null,{"$f":"IF(AND(D25>0,OR(A25=\"\",D25=\"\")), \"Inserire voce di spesa e descrizione\",\"OK\")","v":"OK"}]
[null,null,null,null,null,0,null,"OK"]
[null,null,null,null,null,0,null,"OK"]
[null,null,null,null,null,0,null,"OK"]
[null,null,null,null,null,0,null,"OK"]
[null,null,null,null,null,0,null,"OK"]
["Totale b) ",null,null,{"$f":"SUM(D25:D30)","v":0},{"$f":"SUM(E25:E30)","v":0},0]
["c)costi per la ricerca contrattuale, le conoscenze e i brevetti acquisiti o ottenuti in licenza da fonti esterne  (attività Ricerca Industriale )"]
[null,null,null,null,null,{"$f":"SUM(D33:E33)","v":0},null,"OK"]
[null,null,null,null,null,0,null,"OK"]
[null,null,null,null,null,0,null,"OK"]
[null,null,null,null,null,0,null,"OK"]
["Totale c) ",null,null,{"$f":"SUM(D33:D36)","v":0},{"$f":"SUM(E33:E36)","v":0},{"$f":"SUM(D37:E37)","v":0}]
[" c) Progetto R&S: costi per la ricerca contrattuale, le conoscenze e i brevetti acquisiti o ottenuti in licenza da fonti esterne (attività Sviluppo Sperimentale )"]
[null,null,null,null,null,{"$f":"D39+E39","v":0},null,"OK"]
[null,null,null,null,null,{"$f":"D40+E40","v":0},null,"OK"]
[null,null,null,null,null,0,null,"OK"]
[null,null,null,null,null,0,null,"OK"]
["Totale c) ",null,null,{"$f":"SUM(D39:D42)","v":0},{"$f":"SUM(E39:E42)","v":0},{"$f":"SUM(F39:F42)","v":0}]
["d) altri costi esercizio (attività Ricerca Industriale )"]
[null,null,null,null,null,{"$f":"D45+E45","v":0},null,"OK"]
[null,null,null,null,null,{"$f":"D46+E46","v":0},null,"OK"]
[null,null,null,null,null,0,null,"OK"]
[null,null,null,null,null,0,null,"OK"]
["Totale d) ",null,null,{"$f":"SUM(D45:D48)","v":0},{"$f":"SUM(E45:E48)","v":0},0]
["d) altri costi esercizio (attività Sviluppo Sperimentale )"]
[null,null,null,null,null,{"$f":"SUM(D51:E51)","v":0},null,{"$f":"IF(AND(D51>0,OR(A51=\"\",D51=\"\")), \"Inserire voce di spesa e descrizione\",\"OK\")","v":"OK"}]
[null,null,null,null,null,null,null,{"$f":"IF(AND(D52>0,OR(A52=\"\",D52=\"\")), \"Inserire voce di spesa e descrizione\",\"OK\")","v":"OK"}]
[null,null,null,null,null,null,null,"OK"]
[null,null,null,null,null,0,null,{"$f":"IF(AND(D54>0,OR(A54=\"\",D54=\"\")), \"Inserire voce di spesa e descrizione\",\"OK\")","v":"OK"}]
["Totale d)",null,null,{"$f":"SUM(D51:D54)","v":0},{"$f":"SUM(E51:E54)","v":0},0]
["e) spese generali (attività Ricerca Industriale )"]
[null,null,null,null,null,{"$f":"SUM(D57:E57)","v":0},null,{"$f":"IF(AND(D57>0,OR(A57=\"\",D57=\"\")), \"Inserire voce di spesa e descrizione\",\"OK\")","v":"OK"}]
[null,null,null,null,null,0,null,{"$f":"IF(AND(D58>0,OR(A58=\"\",D58=\"\")), \"Inserire voce di spesa e descrizione\",\"OK\")","v":"OK"}]
["Totale e)",null,null,{"$f":"SUM(D57:D58)","v":0},{"$f":"SUM(E57:E58)","v":0},{"$f":"SUM(D59:E59)","v":0}]
["e)spese generali (attività Sviluppo Sperimentale )"]
[null,null,null,null,null,{"$f":"SUM(D61:E61)","v":0},null,{"$f":"IF(AND(D61>0,OR(A61=\"\",D61=\"\")), \"Inserire voce di spesa e descrizione\",\"OK\")","v":"OK"}]
[null,null,null,null,null,0,null,{"$f":"IF(AND(D62>0,OR(A62=\"\",D62=\"\")), \"Inserire voce di spesa e descrizione\",\"OK\")","v":"OK"}]
["Totale e)",null,null,{"$f":"SUM(D61:D62)","v":0},{"$f":"SUM(E61:E62)","v":0},{"$f":"SUM(D63:E63)","v":0}]
["Totale B costi forfettari (b+c+d+e) (n.b. la somma non deve essere superiore al 40% del totale spese personale)",null,null,{"$f":"D63+D59+D55+D49+D43+D37+D31+D23","v":0},{"$f":"E63+E59+E55+E49+E43+E37+E31+E23","v":0},0,null,{"$f":"IF(D64<=D15*0.4,\"ok\",\"Spese in esubero\")","v":"ok"}]
["Totale progetto (Quota RI) (n.b. la somma non deve essere superiore al 30% del totale A+B)",null,null,{"$f":"D9+D23+D37+D49+D59","v":0},{"$f":"E9+E23+E37+E49+E59","v":0},0,null,{"$f":"IF(D65<=D67*0.3,\"ok\",\"Spese in esubero\")","v":"ok"}]
["Totale progetto (Quota SS)",null,null,{"$f":"D14+D31+D43+D55+D63","v":0},{"$f":"E14+E31+E43+E55+E63","v":0},0]
["Totale A+B",null,null,{"$f":"D64+D15","v":0},{"$f":"E64+E15","v":0},0]

{"sheet":"5.Determinazione contributo","index":6,"n_rows":14,"n_cols":12,"rows_kept":14,"cut":false,"hidden":false,"merged":[[2,0,3,0]]}
[" Determinazione contributo"]
["Tipologia Soggetto","Categorie di spese (Investimento Produttivo)","Importo spese ammissibili  [€]","Intensità di aiuto applicabile","Calcolo Contributo [€]","Calcolo Contributo Totale Concedibile [€]",null,null,null,null,"RI","SS"]
[{"$f":"'1. Anagrafica'!A10","v":"Piccola Impresa"}," Spese di cui alle lettere a), b1-b2-b3), c) d) del par. 3.4., paragrafo 1., comma 1.1 (Art 14 GBER)",{"$f":"'4.Programma di Investimenti L1'!B4-'4.Programma di Investimenti L1'!B130","v":0},{"$f":"IF('1. Anagrafica'!A10='1. Anagrafica'!AB1,70%,IF('1. Anagrafica'!A10='1. Anagrafica'!AB2,60%,50%))","v":0.7},{"$f":"C3*D3","v":0},{"$f":"E3","v":0},null,null,null,"Piccola Impresa",0.8,0.6]
[null,"Spese di cui alle lettere e) del par. 3.4., paragrafo 1., comma 1.1 (Art 18 GBER)",{"$f":"IF('1. Anagrafica'!A10='1. Anagrafica'!AB3,0,'4.Programma di Investimenti L1'!B130)","v":0},{"$f":"IF(OR('1. Anagrafica'!A10='1. Anagrafica'!AB1,'1. Anagrafica'!A10='1. Anagrafica'!AB2),50%,0)","v":0.5},{"$f":"D4*C4","v":0},{"$f":"E4","v":0},null,null,null,"Media Impresa",0.75,0.5]
[null,null,null,null,null,null,null,null,null,"Grande impresa",0.65,0.4]
["Tipologia Soggetto","Categorie di spese (RI)","Importo spese ammissibili [€]","Intensità di aiuto massima applicabile [€]","Contributo Massimo Teorico Applicabile [€]"]
[{"$f":"'1. Anagrafica'!A10","v":"Piccola Impresa"},"spese (quota RI) di cui all'art 3.4 par 1 comma 1.2 lett a) b) c) d) e)",{"$f":"'4.BProgR&S&I'!D65","v":0},{"$f":"IFERROR(VLOOKUP(A7,J2:L5,2,FALSE),\"\")","v":0.8},{"$f":"IFERROR(C7*D7,\"\")","v":0}]
[]
["Tipologia Soggetto","Categorie di spese (SS)","Importo spese ammissibili [€]","Intensità di aiuto massima applicabile [€]","Contributo Massimo Teorico Applicabile [€]"]
[{"$f":"'1. Anagrafica'!A10","v":"Piccola Impresa"},"spese (quota SS) di cui all'art 3.4 par 1 comma 1.2 lett a) b) c) d) e)",{"$f":"'4.BProgR&S&I'!D66","v":0},{"$f":"IFERROR(VLOOKUP(A7,J2:L5,3,FALSE),\"\")","v":0.6},{"$f":"IFERROR(C10*D10,\"\")","v":0}]
[]
["Tipologia Soggetto","Importo totale investimento ammissibile [€]","Calcolo Contributo Totale Concedibile [€]","Percentuale agevolazione complessiva concedibila [%]","Riduzione percentuale agevolazione complessiva richiesta [%]","Percentuale agevolazione complessiva richiesta [%]","Calcolo Contributo Totale Richiesto [€]"]
[{"$f":"A7","v":"Piccola Impresa"},{"$f":"C3+C4+C7+C10","v":0},{"$f":"IFERROR(F3+F4+E7+E10,\"\")","v":0},{"$f":"IFERROR(C13/B13,0)","v":0},0,{"$f":"D13-E13","v":0},{"$f":"B13*F13","v":0}]
[null,{"$f":"IFERROR(IF((C3+C4)/B13>0.6,\"\",\"Esubero Spesa\"),\"\")","v":""}]

{"sheet":"6.Piano di copertura","index":7,"n_rows":14,"n_cols":5,"rows_kept":14,"cut":false,"hidden":false,"merged":[[10,0,10,4],[12,0,12,4],[13,0,13,4],[3,0,3,4],[4,2,4,3],[5,2,5,3],[7,2,7,3],[8,2,8,3],[9,2,9,3]]}
[" Piano di copertura"]
[]
[]
[" Prospetto fonti/impieghi"]
["Impieghi/Fabbisogni","Importi in €","Fonti di copertura",null,"Importi in €"]
["Spese agevolabili",{"$f":"'4.Programma di Investimenti L1'!B4","v":0},"Contributo richiesto ",null,{"$f":"'5.Determinazione contributo'!G13","v":0}]
["Spese non agevolabili (eventuale)",{"$f":"'4.Programma di Investimenti L1'!C4+'4.BProgR&S&I'!E4","v":0},"Risorse proprie"]
["IVA",null,"Finanziamento esterno"]
["Altro",null,"Altro"]
["Totale Impieghi",{"$f":"SUM(B6:B9)","v":0},"Totale Fonti di copertura",null,{"$f":"SUM(E6:E9)","v":0}]
[{"$f":"IF(E10>=B10,\"OK\",\"NON OK\")","v":"OK"}]
[]
["Descrizione delle modalità di apporto dei mezzi propri e di ricorso ad altre fonti"]
["Illustrare   le   modalità  attraverso   cui  si   farà   fronte   al   finanziamento   delle   spese   non  coperte   da agevolazione."]

{"sheet":"7.Criteri  di valutazione","index":8,"n_rows":64,"n_cols":5,"rows_kept":64,"cut":false,"hidden":false,"merged":[[34,3,36,3],[34,0,36,0],[34,1,36,1],[33,0,33,4],[27,3,32,3],[37,0,38,0],[60,0,60,4],[63,0,63,4],[56,0,56,4],[57,0,57,4],[58,0,58,4],[59,0,59,4],[53,0,53,1],[54,0,54,1],[55,0,55,1],[54,3,54,4],[37,1,38,1],[37,3,38,3],[34,4,38,4],[45,0,51,0],[40,0,40,2],[40,3,40,4],[45,1,51,1],[43,0,43,4],[44,0,44,4],[45,3,51,3],[45,4,51,4],[14,0,14,4],[15,4,19,4],[17,0,19,0],[17,1,19,1],[17,3,19,3],[15,0,16,0],[15,1,16,1],[15,3,16,3],[1,0,1,1],[1,3,1,4],[2,0,2,4],[3,0,13,0],[3,1,13,1],[3,3,10,3],[3,4,13,4],[11,3,13,3],[20,0,20,4],[27,0,32,0],[21,4,32,4],[24,3,26,3],[21,0,23,0],[21,1,23,1],[21,3,23,3],[24,0,26,0],[24,1,26,1]]}
[]
["Criteri di valutazione",null,"Parametro","Punteggio Massimo"]
["A. Efficacia"]
["A1","Capacità degli interventi di contribuire al perseguimento dei risultati attesi del Programma e delle finalità dell’Azione specifica e chiara esplicitazione degli obiettivi e delle finalità proposti","A1.1) A1.1) Capacità del Programma di Investimento di contribuire agli obiettivi e finalità delle priorità STEP.\nIl punteggio è assegnato qualora il progetto abbia impatto (i.e. in termini di progressi tecnologici, perfezionamento delle tecnologie, di benefici conseguibili) su entrambi gli ambiti strategici STEP di seguito indicati:",7.5,15]
[]
[null,null,"             •Tecnologie digitali e innovazione deep-tech;"]
[]
[null,null,"             • Tecnologie pulite ed efficienti sotto il profilo delle risorse"]
[]
[]
[null,null,"Il punteggio è assegnato sulla base delle indicazioni fornite in merito dall’impresa proponente all’interno della domanda e della perizia asseverata giurata di cui al par. 3.1.6 , con l’espressione di un giudizio da parte della Commissione di valutazione, con le modalità previste dall’Avviso"]
[null,null," A1.2) Capacità del progetto di favorire la crescita e il consolidamento dell’impresa proponente all’interno delle filiere produttive del digitale e del deep tech, anche in linea con le traiettorie di Sviluppo RIS3 Calabria coerenti con quelle individuate nella STEP, specializzate in aree quali la mitigazione dei rischi naturali, la salute, l’adattamento e predizione dei cambiamenti climatici, la depurazione delle acque ed ottimizzazione della risorse idrica, la sostenibilità delle produzioni agricole ed alimentari, la protezione e sicurezza dei dati di privati e pubbliche amministrazioni, con l’obiettivo di stimolare lo sviluppo di veri e propri ecosistemi digitali che possano produrre continuativamente nel tempo tecnologie su larga scala",7.5]
[]
[null,null,"Il punteggio è assegnato sulla base delle indicazioni fornite in merito dall’impresa proponente all’interno della domanda e della perizia asseverata giurata di cui al par. 3.1.6 , con l’espressione di un giudizio da parte della Commissione di valutazione, con le modalità previste dall’Avviso"]
["B. Efficienza"]
["B1","Sostenibilità economica e finanziaria del progetto in termini di economicità della proposta (in rapporto all’importo del sostegno, alle attività intraprese e al conseguimento degli obiettivi)","B1.1) Quota di Cofinanziamento privato. Percentuale di agevolazione richiesta inferiore a quella massima concedibile.\nViene attribuito 1 punto per ogni punto percentuale di contributo in conto capitale richiesto in meno rispetto alla percentuale massima di contributo concedibile, fino ad un massimo di 10 punti",10,20]
[null,null,{"$f":"'5.Determinazione contributo'!E13","v":0}]
["B2","Qualità delle soluzioni organizzative e metodologiche individuate per la realizzazione degli interventi connesse al piano di lavoro, alla valutazione dei rischi, alla adeguatezza delle risorse attribuite alle singole componenti progettuali","B2.1) ) Progetti che prevedano una chiara esposizione dell’organizzazione progettuale, del piano di lavoro, una puntuale valorizzazione dei rischi per la realizzazione delle attività. Saranno valutati i seguenti elementi:\n-\tQualità della metodologia, delle procedure di attuazione del progetto e della sua fattibilità (fino a 2,5 punti)\n-\tQualità delle soluzioni organizzative proposte rispetto alle specifiche tecniche indicate nel progetto (fino a 2,5 punti)\n-\tCapacità ed esperienze pregresse delle imprese proponente attestate mediante adeguato report delle attività aziendali in ambiti coerenti con i settori tecnologici  STEP (fino a 2,5 punti)\n-\tAccuratezza dell’esame delle criticità  tecnico-scientifiche e procedimentali e dei  rischi esogeni ed endogeni che potrebbero limitare o impedire la realizzazione del progetto e il conseguimento delle finalità progettuali, e presenza di azioni previste per la  mitigazione dei rischi rilevati (fino a 2,5 punti)",10]
[]
[null,null,"IIl punteggio è assegnato sulla base delle indicazioni fornite in merito dall’impresa proponente all’interno della domanda e/o di relazioni tecniche allegate alla domanda,  con l’espressione di un giudizio da parte della Commissione di valutazione, con le modalità previste dall’Avviso"]
["C. Utilità"]
["C1","Progetti incentrati sugli investimenti digitali e/o verdi, sull'economia a basse emissioni di carbonio, sulla resilienza e sull'adattamento ai cambiamenti climatici e sull’economia circolare che consentono autonomia strategica  e sostenibilità dell’industria dell’Unione","         C1.1.a) Capacità della tecnologica critica di apportare al mercato interno almeno due degli elementi di seguito indicati, con un notevole potenziale economico:\n          •\telemento innovativo\n          •\telemento emergente \n          •\telemento all’avanguardia \nSaranno attribuiti:\n5  punti in presenza di due elementi\n10 punti in presenza di tre elementi\n\n         C1.1.b) Potenziale economico della tecnologia critica sviluppata, da valutarsi in termini di:\n          •capacità della tecnologia critica di raggiungere un’ampia gamma di mercati dell’Unione europea;\n       oppure\n        •capacità della tecnologia critica di avere un impatto sostanziale sullo sviluppo o sulla fabbricazione della tecnologia.\nSaranno attribuiti 10  punti in presenza del requisito (modalità on-off)\n\nIn alternativa ai sotto-criteri precedenti (C1.1.a e C1.1.1.b), \nse la tecnologia è proposta in coerenza con l’art. 2 comma 2 lettera b) del Regolamento STEP (cioè contribuisce a ridurre o prevenire le dipendenze strategiche dell’Unione), sono valutati i seguenti aspetti:\n\n         C1.1.c) Capacità della tecnologia critica del progetto di contribuire a ridurre o prevenire le dipendenze strategiche, attraverso i seguenti fattori:\n          •\tcontributo alla leadership industriale e tecnologica dell'Unione;\n          •\tcontributo alle infrastrutture critiche a livello europeo;\n          •\taumento della capacità di fabbricazione;\n          •\trafforzamento della sicurezza dell'approvvigionamento;\n          •\tpromozione di effetti transfrontalieri positivi nel mercato interno.\nSaranno attribuiti:\n4 punti per ogni fattore presente fino ad un massimo di 20 punti in presenza tutti i fattori.\n\nI punteggi di cui al parametro C1.1.1.a e C1.1.b sono cumulabili tra loro.\n\nIl punteggio C1.1.1.c è alternativo e non cumulabile con gli altri due parametri C1.1.1a e C1.1.1.b ",20,40]
[null,null,"Il punteggio è assegnato al parametro C1.1.a e C1.1.1.b, oppure, in alternativa al parametro C1.1.1.c, sulla base delle indicazioni fornite in merito dall’impresa proponente all’interno della domanda e della perizia asseverata giurata di cui al par. 3.1.6 ,  con l’espressione di un giudizio da parte della Commissione di valutazione, con le modalità previste dall’Avviso"]
[]
["C2","Grado di innovazione introdotte dalle tecnologie trasformative (in termini di processo, prodotto, assetti organizzativi e gestionali) che valorizzi le filiere interessate da STEP,  con priorità per investimenti effettuati da imprese non ancora localizzate nella Regione in grado di creare ecosistemi stabili","C2.1) Grado di innovazione e valorizzazione delle filiere STEP. Sarà attribuito il punteggio a proposte progettuali presentate da imprese extra-regionali  non ancora localizzate in Calabria, basate su tecnologie trasformative il cui grado di innovazione consenta di  valorizzare una delle filiere interessate da STEP (massimo 5 punti)",5]
[]
[null,null,"Il punteggio è assegnato sulla base delle indicazioni fornite in merito dall’impresa proponente all’interno della domanda, con l’espressione di un giudizio da parte della Commissione di valutazione, con le modalità previste dal presente Avviso"]
["C3 ","Ricadute positive in termini occupazionali anche in termini di coinvolgimento e assunzione di giovani ricercatori nei progetti proposti, anche in ottica di reshoring","C3.1) Ricaduta  occupazionale (massimo 15  punti)\nSarà attribuito:\n1. un punto per ogni nuovo occupato (inteso come lavoratore dipendente) previsto dal Programma di Investimento nelle unità operative oggetto dello stesso Programma, con le seguenti maggiorazioni:\n2. ove l’incremento occupazionale sia riferito a laureati residenti in Calabria, saranno attribuiti ulteriori due punti (rispetto al  punteggio 1) per ogni nuovo addetto laureato  residente in Calabria; \n\nin aggiunta a quanto previsto dai punti 1 e 2:\n3.Ove l’incremento occupazionale sia riferito a giovani ricercatori di età massima 35 anni, anche in ottica di reshoring, saranno attribuiti ulteriori due punti (rispetto al  punteggio 1 e 2) per ogni nuovo addetto che rientri in questa tipologia. Ai soli fini dell’avviso, per “ricercatore” si intende un soggetto che:\n- ha conseguito un dottorato di ricerca universitario, \n- o che ha svolto il ruolo di ricercatore a tempo determinato o indeterminato, - o che ha svolto il ruolo di assegnista di ricerca\n in un Ateneo universitario in Italia o all’estero\n\nL’incremento occupazionale, inteso come incremento netto del numero di lavoratori dipendenti dell’unità operativa oggetto dell’intervento rispetto al numero di lavoratori dipendenti alla data di presentazione della domanda, per come dichiarato nella domanda, deve essere dimostrato entro la data di rendicontazione finale, garantendo che l’incremento occupazionale sia mantenuto almeno 12 mesi dalla data di assunzione dei nuovi lavoratori dipendenti, fatto salvo i casi di riduzione dovuti a dimissioni volontarie, pensionamenti per limiti d’età, licenziamenti per giusta causa (e non per riduzione del personale)\nAi fini del punteggio C3.1 punto 2, la residenza in Calabria dei laureati assunti deve essere ottenuta e  dimostrata entro la data di rendicontazione finale",15]
[null,"N°totale addetti incrementali"]
[null,"di cui:"]
[null,"laureati residenti in calabria"]
[null,"ricercatori di età < 35 anni"]
[]
["D. Sostenibilità"]
["D1","Adeguatezza del rapporto fra i costi da sostenere per l’attuazione dell’investimento","D1.1) Adeguatezza del rapporto fra i costi in tecnologie/produzioni rispetto agli investimenti infrastrutturali da sostenere per l’attuazione dell’investimento.\nSe il Progetto comprende sia Investimenti Produttivi che Attività di sviluppo sperimentale saranno attribuiti 10 punti\nSe il Progetto comprende solo Investimenti Produttivi  oppure  solo Attività di sviluppo sperimentale saranno attribuiti 5  punti",10,25]
[null,null,"Il punteggio sarà attribuito(modalità on-off)  sulla base delle indicazioni fornite in merito dall’impresa proponente all’interno della domanda "]
[]
["D2","Sostenibilità delle soluzioni proposte per la replicabilità e la durabilità dell'intervento","D2.1)  Sostenibilità del Progetto in termini di risorse finanziarie adeguate (proprie o di terzi), di coerenza del piano di copertura finanziaria del progetto, anche rispetto al cronoprogramma degli investimenti. Nel caso di Progetti comprendenti Investimenti Produttivi, sarà valutata la  capacità di generare flussi economici adeguati a garantire prospettive di sviluppo nel medio-lungo termine. Nel caso di Progetti riguardanti solo Attività di Sviluppo Sperimentale, sarà valutata la  potenzialità  attesa delle tecnologie sviluppate in termini di impatto economico sul mercato dell’unione e della ampiezza potenziale di adozione sul mercato",15]
[null,null,"Il punteggio (massimo 15 punti) è assegnato sulla base delle indicazioni fornite in merito dall’impresa proponente all’interno della domanda e della ulteriore eventuale documentazione allegata dal proponente (business plan numerico e descrittivo o altro documento strategico equivalente), con l’espressione di un giudizio da parte della Commissione di valutazione, con le modalità previste dal presente Avviso"]
[]
["Totale complessivo",null,null,100]
[]
[]
["Punteggio aggiuntivo "]
["E. Punteggio aggiuntivo"]
["E1","Premialità per le imprese resistenti alla criminalità organizzata e per il superamento della discriminazione di genere e incentivi ","         E1.1 Premialità per le imprese resistenti alla criminalità organizzata in applicazione della Legge regionale n. 51/2023","10% del parametro numerico finale",10]
[null,null,"Ai fini dell’attribuzione del punteggio si farà riferimento a quanto dichiarato in domanda sul punto"]
[]
[]
[null,null,"I punteggi E1.1, non contribuisce ai fini del raggiungimento minimo di 60/100 punti"]
[]
[]
[]
["Il sottoscritto",null,"ss"]
["il qualità di legale rappresentante dell'impresa",null,{"$f":"'1. Anagrafica'!A4","v":"aa"},{"$f":"'1. Anagrafica'!A6","v":"aa"}]
["Codice fiscale",null,{"$f":"'1. Anagrafica'!A8","v":"aa"}]
["consapevole delle responsabilità penali cui può andare incontro in caso di dichiarazioni mendaci, ai sensi e per gli effetti dell’art. 76 del D.P.R. 28 dicembre 2000, n. 445,"]
["DICHIARA"]
[" - che le informazioni riportate nel presente Formulario sono veritiere e, ove riferite a elementi previsionali, basate su stime ragionevoli;\n - che i valori esposti relativi alla spesa ammissibile, per la quale il contributo è richiesto, si basa su i) preventivi predisposti nella disponibilità del richiedente e/o ii) su stime ragionevoli effettuate dal richiedente medesimo "]
[]
["RICHIEDE"]
[null,"un contributo pari a €: ",{"$f":"'5.Determinazione contributo'!G13","v":0}]
[]
["Firma digitale Legale Rappresentante"]